[Event "Late-Titled-Tuesday-Blitz-February-20-2024"]
[Site "Chess.com"]
[Date "2024.02.20"]
[Round "4"]
[White "CRObliterator"]
[Black "jaskol95"]
[Result "0-1"]
[WhiteElo "2368"]
[BlackElo "2609"]
[TimeControl "180+1"]
[EndTime "14:38:35 PST"]
[Termination "jaskol95 won by resignation"]

1. e4 {[%clk 0:03:00.9]} 1... d5 {[%clk 0:02:59.5]} 2. exd5 {[%clk 0:03:00.4]}
2... Nf6 {[%clk 0:03:00.2]} 3. d4 {[%clk 0:02:52.8]} 3... Bg4 {[%clk 0:03:00.1]}
4. Be2 {[%clk 0:02:51.5]} 4... Bxe2 {[%clk 0:03:00.4]} 5. Nxe2 {[%clk
0:02:51.3]} 5... Qxd5 {[%clk 0:02:57.3]} 6. O-O {[%clk 0:02:50.8]} 6... e6
{[%clk 0:02:57.3]} 7. Nbc3 {[%clk 0:02:49.6]} 7... Qh5 {[%clk 0:02:45.8]} 8. Ng3
{[%clk 0:02:16.7]} 8... Qxd1 {[%clk 0:02:45.2]} 9. Rxd1 {[%clk 0:02:17.6]} 9...
c6 {[%clk 0:02:43]} 10. Nge4 {[%clk 0:02:16.7]} 10... Nbd7 {[%clk 0:02:41.8]}
11. Bg5 {[%clk 0:02:12]} 11... Be7 {[%clk 0:02:42]} 12. Bxf6 {[%clk 0:02:10.1]}
12... Nxf6 {[%clk 0:02:36.4]} 13. Nxf6+ {[%clk 0:02:09.4]} 13... gxf6 {[%clk
0:02:23.2]} 14. Rd3 {[%clk 0:02:09]} 14... O-O-O {[%clk 0:02:21.9]} 15. Rad1
{[%clk 0:02:08.3]} 15... f5 {[%clk 0:02:21.9]} 16. Ne2 {[%clk 0:02:07.4]} 16...
Bf6 {[%clk 0:02:11.4]} 17. Kf1 {[%clk 0:02:00.8]} 17... Kc7 {[%clk 0:02:08.3]}
18. Nc1 {[%clk 0:02:00.4]} 18... Rhg8 {[%clk 0:02:01.6]} 19. Nb3 {[%clk
0:01:59.1]} 19... Rg4 {[%clk 0:01:38.8]} 20. h3 {[%clk 0:01:53.3]} 20... Rgg8
{[%clk 0:01:36.6]} 21. R3d2 {[%clk 0:01:46.3]} 21... b6 {[%clk 0:01:31.1]} 22.
a4 {[%clk 0:01:42.9]} 22... Be7 {[%clk 0:01:27.7]} 23. Rd3 {[%clk 0:01:39.5]}
23... Rd7 {[%clk 0:01:15.4]} 24. Nd2 {[%clk 0:01:34.4]} 24... Rgd8 {[%clk
0:01:05.8]} 25. Nf3 {[%clk 0:01:34.2]} 25... Bf6 {[%clk 0:01:05.7]} 26. Ne5
{[%clk 0:01:28.9]} 26... Bxe5 {[%clk 0:00:48.3]} 27. dxe5 {[%clk 0:01:29.8]}
27... Rxd3 {[%clk 0:00:48.8]} 28. Rxd3 {[%clk 0:01:30.7]} 28... Rxd3 {[%clk
0:00:49.1]} 29. cxd3 {[%clk 0:01:30.3]} 29... b5 {[%clk 0:00:49.5]} 30. axb5
{[%clk 0:00:50.4]} 30... cxb5 {[%clk 0:00:49.3]} 31. b4 {[%clk 0:00:44.7]} 31...
Kb6 {[%clk 0:00:41.7]} 32. g4 {[%clk 0:00:28.4]} 32... fxg4 {[%clk 0:00:35.9]}
33. hxg4 {[%clk 0:00:29.3]} 33... a5 {[%clk 0:00:36.2]} 34. bxa5+ {[%clk
0:00:28.4]} 34... Kxa5 {[%clk 0:00:37.1]} 35. Ke2 {[%clk 0:00:28.1]} 35... Kb4
{[%clk 0:00:33.2]} 36. Kd2 {[%clk 0:00:27.9]} 36... Ka3 {[%clk 0:00:20.2]} 37.
Kc2 {[%clk 0:00:26.2]} 37... b4 {[%clk 0:00:20.3]} 38. Kb1 {[%clk 0:00:24.7]}
38... Kb3 {[%clk 0:00:20.4]} 39. f4 {[%clk 0:00:19.5]} 39... Kc3 {[%clk
0:00:20.6]} 40. f5 {[%clk 0:00:18.2]} 40... Kxd3 {[%clk 0:00:16.9]} 0-1

[Event "Late-Titled-Tuesday-Blitz-February-20-2024"]
[Site "Chess.com"]
[Date "2024.02.20"]
[Round "4"]
[White "yaguigor"]
[Black "Capablanca_Oujda_2021"]
[Result "0-1"]
[WhiteElo "2629"]
[BlackElo "2515"]
[TimeControl "180+1"]
[EndTime "14:38:41 PST"]
[Termination "Capablanca_Oujda_2021 won by resignation"]

1. d4 {[%clk 0:03:00.9]} 1... Nf6 {[%clk 0:02:59.2]} 2. c4 {[%clk 0:03:00.1]}
2... e6 {[%clk 0:02:59.4]} 3. Nc3 {[%clk 0:02:58.8]} 3... d5 {[%clk 0:02:59.5]}
4. cxd5 {[%clk 0:02:56.7]} 4... exd5 {[%clk 0:02:59.2]} 5. Bg5 {[%clk
0:02:56.7]} 5... c6 {[%clk 0:02:59.5]} 6. e3 {[%clk 0:02:53.5]} 6... Be7 {[%clk
0:02:58.3]} 7. Bd3 {[%clk 0:02:52.3]} 7... O-O {[%clk 0:02:57.8]} 8. Qc2 {[%clk
0:02:47.7]} 8... h6 {[%clk 0:02:48]} 9. Bh4 {[%clk 0:02:39.1]} 9... Re8 {[%clk
0:02:41.9]} 10. Nge2 {[%clk 0:02:34.7]} 10... Ne4 {[%clk 0:02:35.2]} 11. Bxe7
{[%clk 0:02:24.1]} 11... Qxe7 {[%clk 0:02:34.9]} 12. Bxe4 {[%clk 0:02:18.2]}
12... dxe4 {[%clk 0:02:35.8]} 13. Ng3 {[%clk 0:02:14.5]} 13... Na6 {[%clk
0:02:16.9]} 14. Qxe4 {[%clk 0:02:01.2]} 14... Qd8 {[%clk 0:01:55.7]} 15. Qf4
{[%clk 0:01:51.7]} 15... g5 {[%clk 0:01:26.1]} 16. Qf3 {[%clk 0:01:49.2]} 16...
Qxd4 {[%clk 0:01:24.7]} 17. O-O {[%clk 0:01:25.9]} 17... Qe5 {[%clk 0:01:14.2]}
18. Nh5 {[%clk 0:01:16.3]} 18... f5 {[%clk 0:01:04.1]} 19. Rfd1 {[%clk
0:01:03.1]} 19... Be6 {[%clk 0:01:01.7]} 20. h4 {[%clk 0:01:00.9]} 20... Rad8
{[%clk 0:00:44.9]} 21. Rxd8 {[%clk 0:00:58.4]} 21... Rxd8 {[%clk 0:00:45.8]} 22.
Rd1 {[%clk 0:00:58]} 22... Rf8 {[%clk 0:00:42.3]} 23. Rd4 {[%clk 0:00:47.2]}
23... Nc5 {[%clk 0:00:39.8]} 24. Qd1 {[%clk 0:00:43.6]} 24... Bf7 {[%clk
0:00:27.9]} 25. hxg5 {[%clk 0:00:39.7]} 25... hxg5 {[%clk 0:00:27.4]} 26. Ng3
{[%clk 0:00:37]} 26... Ne6 {[%clk 0:00:25.1]} 27. Rd7 {[%clk 0:00:35.2]} 27...
f4 {[%clk 0:00:24.3]} 28. exf4 {[%clk 0:00:28.1]} 28... Nxf4 {[%clk 0:00:23.1]}
29. Nge4 {[%clk 0:00:26.2]} 29... b5 {[%clk 0:00:20]} 30. Qg4 {[%clk 0:00:18.7]}
30... Be6 {[%clk 0:00:18.5]} 31. Qd1 {[%clk 0:00:16.6]} 31... Bxd7 {[%clk
0:00:17.9]} 32. Qxd7 {[%clk 0:00:17.4]} 32... b4 {[%clk 0:00:17.9]} 33. Qxc6
{[%clk 0:00:08]} 33... bxc3 {[%clk 0:00:16.5]} 34. Nxc3 {[%clk 0:00:07.4]} 34...
Rd8 {[%clk 0:00:13.4]} 35. g3 {[%clk 0:00:06.1]} 35... Ne6 {[%clk 0:00:11.2]}
36. Qc5 {[%clk 0:00:05.6]} 36... Nxc5 {[%clk 0:00:10.6]} 0-1

[Event "Late-Titled-Tuesday-Blitz-February-20-2024"]
[Site "Chess.com"]
[Date "2024.02.20"]
[Round "4"]
[White "KaydenTroffChess"]
[Black "chucksterf10"]
[Result "1-0"]
[WhiteElo "2823"]
[BlackElo "2558"]
[TimeControl "180+1"]
[EndTime "14:38:43 PST"]
[Termination "KaydenTroffChess won by resignation"]

1. d4 {[%clk 0:03:00.9]} 1... Nf6 {[%clk 0:02:59.7]} 2. Nf3 {[%clk 0:03:01.1]}
2... d5 {[%clk 0:02:58.1]} 3. Bf4 {[%clk 0:03:00.8]} 3... c5 {[%clk 0:02:58]} 4.
e3 {[%clk 0:03:01]} 4... Nc6 {[%clk 0:02:57.7]} 5. Nc3 {[%clk 0:03:01]} 5... Nh5
{[%clk 0:02:57.7]} 6. Bg5 {[%clk 0:02:57.2]} 6... h6 {[%clk 0:02:53.6]} 7. Bh4
{[%clk 0:02:57.3]} 7... g5 {[%clk 0:02:53.3]} 8. Bg3 {[%clk 0:02:57.6]} 8...
Nxg3 {[%clk 0:02:45.4]} 9. hxg3 {[%clk 0:02:58.5]} 9... Bg7 {[%clk 0:02:42.8]}
10. dxc5 {[%clk 0:02:54.6]} 10... Qa5 {[%clk 0:02:40.8]} 11. Be2 {[%clk
0:02:46.5]} 11... Bxc3+ {[%clk 0:02:22.9]} 12. bxc3 {[%clk 0:02:45.2]} 12...
Qxc3+ {[%clk 0:02:23.8]} 13. Kf1 {[%clk 0:02:45.2]} 13... Be6 {[%clk 0:02:14.3]}
14. Rb1 {[%clk 0:02:42.7]} 14... Rb8 {[%clk 0:02:07.8]} 15. Rb3 {[%clk
0:02:36.9]} 15... Qxc5 {[%clk 0:02:00.1]} 16. Nxg5 {[%clk 0:02:35.9]} 16... Bf5
{[%clk 0:01:54.6]} 17. Bd3 {[%clk 0:02:02.5]} 17... Bxd3+ {[%clk 0:01:45.2]} 18.
cxd3 {[%clk 0:01:55.4]} 18... e6 {[%clk 0:01:37.6]} 19. Kg1 {[%clk 0:01:44.2]}
19... a5 {[%clk 0:01:27.9]} 20. Qa1 {[%clk 0:01:32.6]} 20... Qf8 {[%clk
0:01:19.1]} 21. Qf6 {[%clk 0:01:19.2]} 21... Ne7 {[%clk 0:01:09.6]} 22. Nxf7
{[%clk 0:01:10.5]} 22... Rh7 {[%clk 0:00:59.3]} 23. Qe5 {[%clk 0:01:00.5]} 23...
Kxf7 {[%clk 0:00:46.2]} 24. Rh4 {[%clk 0:00:45.6]} 24... Ng6 {[%clk 0:00:38.9]}
25. Qh5 {[%clk 0:00:45.2]} 25... Kg7 {[%clk 0:00:19.3]} 26. Ra4 {[%clk
0:00:30.2]} 26... b6 {[%clk 0:00:17]} 27. f3 {[%clk 0:00:23.5]} 27... Qf6 {[%clk
0:00:16.6]} 28. Rxa5 {[%clk 0:00:20.6]} 28... bxa5 {[%clk 0:00:09.1]} 29. Rxb8
{[%clk 0:00:20.3]} 29... Rh8 {[%clk 0:00:09.1]} 30. Rb7+ {[%clk 0:00:19.8]}
30... Ne7 {[%clk 0:00:09.8]} 31. Qg4+ {[%clk 0:00:19.6]} 31... Kf7 {[%clk
0:00:10.4]} 32. Qh5+ {[%clk 0:00:18.5]} 32... Kg7 {[%clk 0:00:06.8]} 33. e4
{[%clk 0:00:17.6]} 33... Rc8 {[%clk 0:00:05.3]} 34. e5 {[%clk 0:00:16.2]} 34...
Qf7 {[%clk 0:00:05.5]} 35. Qg4+ {[%clk 0:00:15.7]} 35... Kf8 {[%clk 0:00:05.6]}
36. Qh4 {[%clk 0:00:14.6]} 36... Nf5 {[%clk 0:00:05]} 37. Rxf7+ {[%clk
0:00:13.7]} 37... Kxf7 {[%clk 0:00:05.9]} 38. Qf6+ {[%clk 0:00:14]} 38... Ke8
{[%clk 0:00:03.7]} 39. Qxe6+ {[%clk 0:00:14.3]} 39... Ne7 {[%clk 0:00:03.8]} 40.
Qf6 {[%clk 0:00:13.4]} 40... Rc1+ {[%clk 0:00:03.6]} 41. Kh2 {[%clk 0:00:13.9]}
41... Re1 {[%clk 0:00:04]} 42. e6 {[%clk 0:00:14.2]} 42... a4 {[%clk 0:00:04.5]}
43. Qf7+ {[%clk 0:00:14.7]} 1-0

[Event "Late-Titled-Tuesday-Blitz-February-20-2024"]
[Site "Chess.com"]
[Date "2024.02.20"]
[Round "4"]
[White "igorkovalenko"]
[Black "ozates"]
[Result "0-1"]
[WhiteElo "2944"]
[BlackElo "2598"]
[TimeControl "180+1"]
[EndTime "14:38:44 PST"]
[Termination "ozates won by checkmate"]

1. c4 {[%clk 0:03:00.9]} 1... c5 {[%clk 0:02:58.7]} 2. g3 {[%clk 0:03:00.6]}
2... Nc6 {[%clk 0:02:59]} 3. Bg2 {[%clk 0:03:01.2]} 3... g6 {[%clk 0:02:59.7]}
4. e3 {[%clk 0:03:00.9]} 4... Bg7 {[%clk 0:03:00.3]} 5. Ne2 {[%clk 0:03:01.5]}
5... e5 {[%clk 0:02:58.7]} 6. Nbc3 {[%clk 0:03:01.3]} 6... Nge7 {[%clk
0:02:59.3]} 7. d3 {[%clk 0:02:59.9]} 7... O-O {[%clk 0:02:59.8]} 8. a3 {[%clk
0:02:59.4]} 8... a5 {[%clk 0:02:59.1]} 9. Rb1 {[%clk 0:02:59.5]} 9... d6 {[%clk
0:02:58.6]} 10. O-O {[%clk 0:02:59.9]} 10... Be6 {[%clk 0:02:57.6]} 11. Nd5
{[%clk 0:02:56.8]} 11... Rb8 {[%clk 0:02:54.9]} 12. b3 {[%clk 0:02:51]} 12... b5
{[%clk 0:02:52.7]} 13. Bd2 {[%clk 0:02:50.4]} 13... Qd7 {[%clk 0:02:40.9]} 14.
Nxe7+ {[%clk 0:02:17.3]} 14... Nxe7 {[%clk 0:02:39.1]} 15. cxb5 {[%clk
0:02:17.9]} 15... Qxb5 {[%clk 0:02:36.7]} 16. Nc1 {[%clk 0:02:16]} 16... a4
{[%clk 0:02:35.5]} 17. b4 {[%clk 0:02:15.8]} 17... c4 {[%clk 0:02:33.9]} 18.
dxc4 {[%clk 0:02:12]} 18... Bxc4 {[%clk 0:02:34.8]} 19. Re1 {[%clk 0:02:12.5]}
19... d5 {[%clk 0:02:33.9]} 20. Bc3 {[%clk 0:02:10.9]} 20... Rfd8 {[%clk
0:02:33.6]} 21. Bb2 {[%clk 0:02:07.2]} 21... Rbc8 {[%clk 0:02:31.2]} 22. Qd2
{[%clk 0:01:59.7]} 22... Nf5 {[%clk 0:02:28.9]} 23. Ne2 {[%clk 0:01:57.9]} 23...
d4 {[%clk 0:02:20.8]} 24. exd4 {[%clk 0:01:41.2]} 24... Nxd4 {[%clk 0:02:13.2]}
25. Nxd4 {[%clk 0:01:36.2]} 25... exd4 {[%clk 0:02:14.1]} 26. Rbc1 {[%clk
0:01:33.3]} 26... Qd7 {[%clk 0:01:54.4]} 27. h4 {[%clk 0:01:19.9]} 27... Be6
{[%clk 0:01:47.7]} 28. Kh2 {[%clk 0:01:15.3]} 28... h5 {[%clk 0:01:46.8]} 29.
Red1 {[%clk 0:01:12]} 29... Bb3 {[%clk 0:01:34.7]} 30. Re1 {[%clk 0:01:09.7]}
30... Be6 {[%clk 0:01:34.3]} 31. f4 {[%clk 0:01:03.4]} 31... Bf5 {[%clk
0:01:24.1]} 32. Rc5 {[%clk 0:01:02.8]} 32... Rxc5 {[%clk 0:01:23.3]} 33. bxc5
{[%clk 0:01:03.7]} 33... Qc7 {[%clk 0:01:13.6]} 34. c6 {[%clk 0:01:03.8]} 34...
Be6 {[%clk 0:01:04.7]} 35. Qd3 {[%clk 0:01:00.5]} 35... Bd5 {[%clk 0:01:02.1]}
36. Bxd5 {[%clk 0:00:54.9]} 36... Rxd5 {[%clk 0:01:03]} 37. Qc4 {[%clk
0:00:49.3]} 37... Rd6 {[%clk 0:00:58.9]} 38. Rc1 {[%clk 0:00:44.3]} 38... d3
{[%clk 0:00:54.3]} 39. Bxg7 {[%clk 0:00:42.6]} 39... Kxg7 {[%clk 0:00:55.2]} 40.
Qxa4 {[%clk 0:00:28.7]} 40... d2 {[%clk 0:00:43.9]} 41. Rd1 {[%clk 0:00:28.6]}
41... Qb6 {[%clk 0:00:44.2]} 42. Kg2 {[%clk 0:00:22]} 42... Qe3 {[%clk
0:00:41.9]} 43. c7 {[%clk 0:00:18]} 43... Qe2+ {[%clk 0:00:40.2]} 44. Kh3 {[%clk
0:00:16.2]} 44... Qg4+ {[%clk 0:00:40]} 45. Kg2 {[%clk 0:00:16.7]} 45... Rd3
{[%clk 0:00:28.6]} 46. c8=Q {[%clk 0:00:16.8]} 46... Rxg3+ {[%clk 0:00:22.1]}
47. Kf2 {[%clk 0:00:17.3]} 47... Qf3# {[%clk 0:00:21.5]} 0-1

[Event "Late-Titled-Tuesday-Blitz-February-20-2024"]
[Site "Chess.com"]
[Date "2024.02.20"]
[Round "4"]
[White "rachidhuilda"]
[Black "JiiHart"]
[Result "1-0"]
[WhiteElo "2351"]
[BlackElo "2158"]
[TimeControl "180+1"]
[EndTime "14:38:45 PST"]
[Termination "rachidhuilda won by resignation"]

1. d4 {[%clk 0:03:00.9]} 1... d5 {[%clk 0:02:58.6]} 2. Nf3 {[%clk 0:02:59.7]}
2... Nf6 {[%clk 0:02:57.7]} 3. Bf4 {[%clk 0:02:59.5]} 3... Bf5 {[%clk 0:02:56]}
4. c4 {[%clk 0:02:53.6]} 4... e6 {[%clk 0:02:52.7]} 5. e3 {[%clk 0:02:52.6]}
5... Bd6 {[%clk 0:02:45.5]} 6. Bxd6 {[%clk 0:02:44.3]} 6... cxd6 {[%clk
0:02:37.8]} 7. Nc3 {[%clk 0:02:31.5]} 7... Qa5 {[%clk 0:02:15.3]} 8. cxd5 {[%clk
0:02:11.3]} 8... Nxd5 {[%clk 0:02:09.3]} 9. Qd2 {[%clk 0:02:07.4]} 9... Nxc3
{[%clk 0:02:00]} 10. Qxc3 {[%clk 0:02:06.4]} 10... Qxc3+ {[%clk 0:01:46.3]} 11.
bxc3 {[%clk 0:02:07.3]} 11... O-O {[%clk 0:01:39]} 12. c4 {[%clk 0:02:01.1]}
12... Nd7 {[%clk 0:01:23.5]} 13. Kd2 {[%clk 0:01:49.7]} 13... e5 {[%clk
0:01:22.5]} 14. Be2 {[%clk 0:01:42.1]} 14... exd4 {[%clk 0:00:56.1]} 15. exd4
{[%clk 0:01:40]} 15... Be4 {[%clk 0:00:31.7]} 16. Ne1 {[%clk 0:01:23.7]} 16...
Rfe8 {[%clk 0:00:29.5]} 17. Bd3 {[%clk 0:01:00.2]} 17... Nf6 {[%clk 0:00:16.2]}
18. f3 {[%clk 0:00:58.7]} 18... Bxd3 {[%clk 0:00:13.4]} 19. Nxd3 {[%clk
0:00:57.4]} 19... Re7 {[%clk 0:00:12.5]} 20. Rhe1 {[%clk 0:00:56.3]} 20... Rae8
{[%clk 0:00:12.6]} 21. Rxe7 {[%clk 0:00:53.8]} 21... Rxe7 {[%clk 0:00:13.5]} 22.
Re1 {[%clk 0:00:53.8]} 22... Kf8 {[%clk 0:00:13.6]} 23. g4 {[%clk 0:00:44.4]}
23... h6 {[%clk 0:00:14]} 24. h4 {[%clk 0:00:44.2]} 24... g5 {[%clk 0:00:14.3]}
25. h5 {[%clk 0:00:41.2]} 25... Rxe1 {[%clk 0:00:12.2]} 26. Kxe1 {[%clk
0:00:34.7]} 26... Ke7 {[%clk 0:00:12.9]} 27. Kd2 {[%clk 0:00:35.3]} 27... Kd7
{[%clk 0:00:12.6]} 28. Ke3 {[%clk 0:00:35.7]} 28... Kc6 {[%clk 0:00:11.8]} 29.
Nf2 {[%clk 0:00:35.1]} 29... b5 {[%clk 0:00:11.2]} 30. cxb5+ {[%clk 0:00:34.8]}
30... Kxb5 {[%clk 0:00:11.3]} 31. Ne4 {[%clk 0:00:32.4]} 31... Nd5+ {[%clk
0:00:10.7]} 32. Kd2 {[%clk 0:00:28.5]} 32... Kc6 {[%clk 0:00:10.5]} 33. Ng3
{[%clk 0:00:26.5]} 33... a5 {[%clk 0:00:10.3]} 34. Nf5 {[%clk 0:00:26.6]} 34...
Nb4 {[%clk 0:00:09.3]} 35. a3 {[%clk 0:00:26.6]} 35... Nd5 {[%clk 0:00:07.6]}
36. Nxh6 {[%clk 0:00:26.8]} 36... Kb5 {[%clk 0:00:07.6]} 37. Nxf7 {[%clk
0:00:25.4]} 37... Ka4 {[%clk 0:00:07.5]} 38. h6 {[%clk 0:00:25.9]} 38... Nf6
{[%clk 0:00:06.6]} 39. Nxg5 {[%clk 0:00:25.6]} 39... Kxa3 {[%clk 0:00:05.5]} 40.
h7 {[%clk 0:00:25.7]} 40... Nxh7 {[%clk 0:00:05.8]} 41. Nxh7 {[%clk 0:00:26.6]}
41... Kb2 {[%clk 0:00:05.2]} 42. Nf6 {[%clk 0:00:22.8]} 42... a4 {[%clk
0:00:06.1]} 43. Ne4 {[%clk 0:00:23.6]} 43... a3 {[%clk 0:00:06.5]} 44. Nc3
{[%clk 0:00:24.1]} 44... d5 {[%clk 0:00:05.4]} 45. g5 {[%clk 0:00:24.3]} 45...
a2 {[%clk 0:00:06]} 46. Nxa2 {[%clk 0:00:23.9]} 1-0

[Event "Late-Titled-Tuesday-Blitz-February-20-2024"]
[Site "Chess.com"]
[Date "2024.02.20"]
[Round "4"]
[White "VinzentSpitzl"]
[Black "GMRAVEN_ON_YOUTUBE"]
[Result "0-1"]
[WhiteElo "2543"]
[BlackElo "2758"]
[TimeControl "180+1"]
[EndTime "14:38:47 PST"]
[Termination "GMRAVEN_ON_YOUTUBE won on time"]

1. e4 {[%clk 0:03:00.9]} 1... c5 {[%clk 0:03:00]} 2. Nf3 {[%clk 0:02:59.8]} 2...
e6 {[%clk 0:02:59.7]} 3. d4 {[%clk 0:02:57]} 3... cxd4 {[%clk 0:03:00.1]} 4.
Nxd4 {[%clk 0:02:57.3]} 4... Nc6 {[%clk 0:03:01]} 5. Nc3 {[%clk 0:02:57.4]} 5...
Qc7 {[%clk 0:03:01.2]} 6. Be3 {[%clk 0:02:57.3]} 6... a6 {[%clk 0:02:59.3]} 7.
Be2 {[%clk 0:02:55.6]} 7... Nf6 {[%clk 0:02:56]} 8. O-O {[%clk 0:02:54.5]} 8...
Bb4 {[%clk 0:02:55.8]} 9. Na4 {[%clk 0:02:52.9]} 9... Be7 {[%clk 0:02:50.8]} 10.
Nxc6 {[%clk 0:02:48.8]} 10... bxc6 {[%clk 0:02:51.1]} 11. Nb6 {[%clk 0:02:48.3]}
11... Rb8 {[%clk 0:02:51.6]} 12. Nxc8 {[%clk 0:02:46.7]} 12... Qxc8 {[%clk
0:02:51.8]} 13. Bd4 {[%clk 0:02:42.9]} 13... c5 {[%clk 0:02:48.9]} 14. Be5
{[%clk 0:02:42.8]} 14... Rb6 {[%clk 0:02:49.1]} 15. Qd3 {[%clk 0:02:41.7]} 15...
d6 {[%clk 0:02:40.9]} 16. Bc3 {[%clk 0:02:41.4]} 16... O-O {[%clk 0:02:40.5]}
17. b3 {[%clk 0:02:37.8]} 17... d5 {[%clk 0:02:31.6]} 18. exd5 {[%clk
0:02:23.4]} 18... Nxd5 {[%clk 0:02:31.2]} 19. Bb2 {[%clk 0:02:11.6]} 19... Nf4
{[%clk 0:02:28.9]} 20. Qf3 {[%clk 0:02:08.9]} 20... Nxe2+ {[%clk 0:02:25.5]} 21.
Qxe2 {[%clk 0:02:08.9]} 21... c4 {[%clk 0:02:22.2]} 22. Bd4 {[%clk 0:01:39.1]}
22... Rc6 {[%clk 0:02:17.9]} 23. c3 {[%clk 0:01:33.7]} 23... f6 {[%clk
0:02:11.4]} 24. Rfd1 {[%clk 0:01:22]} 24... e5 {[%clk 0:02:10.4]} 25. Be3 {[%clk
0:01:08.9]} 25... a5 {[%clk 0:02:08.2]} 26. Qf3 {[%clk 0:00:59.1]} 26... Qe6
{[%clk 0:01:50.1]} 27. Qd5 {[%clk 0:00:52.4]} 27... Qxd5 {[%clk 0:01:47.7]} 28.
Rxd5 {[%clk 0:00:53.3]} 28... cxb3 {[%clk 0:01:48]} 29. axb3 {[%clk 0:00:52.8]}
29... Rxc3 {[%clk 0:01:48.7]} 30. Rdxa5 {[%clk 0:00:52.3]} 30... Rxb3 {[%clk
0:01:47.9]} 31. Ra7 {[%clk 0:00:52.1]} 31... Rfb8 {[%clk 0:01:44.9]} 32. g3
{[%clk 0:00:44]} 32... Rb1+ {[%clk 0:01:44.8]} 33. Rxb1 {[%clk 0:00:43.4]} 33...
Rxb1+ {[%clk 0:01:45.7]} 34. Kg2 {[%clk 0:00:44.1]} 34... Kf8 {[%clk 0:01:41.9]}
35. Ra8+ {[%clk 0:00:41]} 35... Kf7 {[%clk 0:01:42]} 36. Ra7 {[%clk 0:00:41.6]}
36... Rb5 {[%clk 0:01:38.5]} 37. Bc1 {[%clk 0:00:39.2]} 37... Rb3 {[%clk
0:01:33.9]} 38. Be3 {[%clk 0:00:38]} 38... Rc3 {[%clk 0:01:34]} 39. Bd2 {[%clk
0:00:38]} 39... Rc4 {[%clk 0:01:34]} 40. h4 {[%clk 0:00:30]} 40... h5 {[%clk
0:01:33.5]} 41. Be3 {[%clk 0:00:30]} 41... Rc6 {[%clk 0:01:30.4]} 42. Bd2 {[%clk
0:00:28.5]} 42... Ke6 {[%clk 0:01:30.3]} 43. Ra8 {[%clk 0:00:26.7]} 43... g6
{[%clk 0:01:29.6]} 44. Be3 {[%clk 0:00:26.5]} 44... f5 {[%clk 0:01:29.3]} 45.
Rg8 {[%clk 0:00:21.8]} 45... Kd5 {[%clk 0:01:26]} 46. Bg5 {[%clk 0:00:20.8]}
46... Bxg5 {[%clk 0:01:14.7]} 47. hxg5 {[%clk 0:00:20.6]} 47... Ke4 {[%clk
0:01:14.8]} 48. Rf8 {[%clk 0:00:15.5]} 48... f4 {[%clk 0:01:08.2]} 49. Rf6
{[%clk 0:00:12.8]} 49... Rc2 {[%clk 0:01:04.9]} 50. gxf4 {[%clk 0:00:12.9]}
50... exf4 {[%clk 0:01:05.1]} 51. Rxg6 {[%clk 0:00:13.2]} 51... Kf5 {[%clk
0:01:05.6]} 52. Rg8 {[%clk 0:00:13.1]} 52... Kg4 {[%clk 0:01:05.5]} 53. g6
{[%clk 0:00:11.5]} 53... f3+ {[%clk 0:01:06]} 54. Kg1 {[%clk 0:00:11]} 54... Kh3
{[%clk 0:01:06.3]} 0-1

[Event "Late-Titled-Tuesday-Blitz-February-20-2024"]
[Site "Chess.com"]
[Date "2024.02.20"]
[Round "4"]
[White "kleopl"]
[Black "carloseduar100"]
[Result "1/2-1/2"]
[WhiteElo "2504"]
[BlackElo "2360"]
[TimeControl "180+1"]
[EndTime "14:38:47 PST"]
[Termination "Game drawn by repetition"]

1. b4 {[%clk 0:03:00.9]} 1... d5 {[%clk 0:02:54.7]} 2. Bb2 {[%clk 0:02:59.9]}
2... Nf6 {[%clk 0:02:54.7]} 3. e3 {[%clk 0:02:59.3]} 3... Bf5 {[%clk 0:02:54.6]}
4. c4 {[%clk 0:02:58.6]} 4... e6 {[%clk 0:02:54.4]} 5. a3 {[%clk 0:02:57.8]}
5... Be7 {[%clk 0:02:52.9]} 6. Nf3 {[%clk 0:02:56.9]} 6... O-O {[%clk
0:02:51.2]} 7. Nc3 {[%clk 0:02:54.8]} 7... c6 {[%clk 0:02:50.6]} 8. d3 {[%clk
0:02:51.7]} 8... h6 {[%clk 0:02:49.7]} 9. Be2 {[%clk 0:02:51.2]} 9... Nbd7
{[%clk 0:02:49.3]} 10. O-O {[%clk 0:02:50.6]} 10... a6 {[%clk 0:02:45.9]} 11. c5
{[%clk 0:02:45.5]} 11... Re8 {[%clk 0:02:45.5]} 12. Nb1 {[%clk 0:02:28.4]} 12...
e5 {[%clk 0:02:45.1]} 13. Nxe5 {[%clk 0:02:20.5]} 13... Nxe5 {[%clk 0:02:45.1]}
14. Bxe5 {[%clk 0:02:20.9]} 14... Bxc5 {[%clk 0:02:35.1]} 15. bxc5 {[%clk
0:02:03.8]} 15... Rxe5 {[%clk 0:02:34.3]} 16. d4 {[%clk 0:02:03.3]} 16... Re7
{[%clk 0:02:20.1]} 17. Nc3 {[%clk 0:02:02.1]} 17... Qd7 {[%clk 0:02:20.2]} 18.
Na4 {[%clk 0:02:00.5]} 18... Rae8 {[%clk 0:02:19.6]} 19. Bd3 {[%clk 0:01:59.7]}
19... Bxd3 {[%clk 0:01:53.3]} 20. Qxd3 {[%clk 0:02:00.6]} 20... Qg4 {[%clk
0:01:53]} 21. h3 {[%clk 0:01:57.6]} 21... Qg5 {[%clk 0:01:48.4]} 22. Rab1 {[%clk
0:01:55.1]} 22... Ne4 {[%clk 0:01:46.9]} 23. Rb2 {[%clk 0:01:51.8]} 23... Rd8
{[%clk 0:01:35.1]} 24. Rfb1 {[%clk 0:01:49.2]} 24... Rdd7 {[%clk 0:01:35.2]} 25.
Nb6 {[%clk 0:01:48.7]} 25... Rd8 {[%clk 0:01:33.6]} 26. Na4 {[%clk 0:01:38.5]}
26... Rdd7 {[%clk 0:01:32.9]} 27. Nc3 {[%clk 0:01:38.3]} 27... Nxc3 {[%clk
0:01:18.5]} 28. Qxc3 {[%clk 0:01:39.2]} 28... Qh5 {[%clk 0:01:02.2]} 29. Qb4
{[%clk 0:01:35.9]} 29... Re6 {[%clk 0:00:55.7]} 30. Qd2 {[%clk 0:01:31.2]} 30...
Rg6 {[%clk 0:00:55.5]} 31. Kh2 {[%clk 0:01:07.8]} 31... Qg5 {[%clk 0:00:33.9]}
32. g3 {[%clk 0:01:07.3]} 32... Qe7 {[%clk 0:00:29]} 33. Qa5 {[%clk 0:01:02]}
33... h5 {[%clk 0:00:28.1]} 34. h4 {[%clk 0:00:58.9]} 34... Rg4 {[%clk
0:00:26.8]} 35. Qb6 {[%clk 0:00:56.8]} 35... Qf6 {[%clk 0:00:23.6]} 36. Qa7
{[%clk 0:00:51.3]} 36... Re7 {[%clk 0:00:21.1]} 37. Qb8+ {[%clk 0:00:49.5]}
37... Kh7 {[%clk 0:00:21]} 38. Qd6 {[%clk 0:00:42.6]} 38... Re6 {[%clk
0:00:19.8]} 39. Qd7 {[%clk 0:00:42.6]} 39... Qf3 {[%clk 0:00:18.6]} 40. Kg1
{[%clk 0:00:35.3]} 40... Rxg3+ {[%clk 0:00:11]} 41. fxg3 {[%clk 0:00:34.7]}
41... Qxg3+ {[%clk 0:00:11.9]} 42. Rg2 {[%clk 0:00:33.1]} 42... Qxe3+ {[%clk
0:00:12.2]} 43. Kh2 {[%clk 0:00:32.8]} 43... Qf4+ {[%clk 0:00:10.7]} 44. Kh1
{[%clk 0:00:31.7]} 44... Qxh4+ {[%clk 0:00:10.6]} 45. Kg1 {[%clk 0:00:31.7]}
45... Qxd4+ {[%clk 0:00:11.1]} 46. Kh1 {[%clk 0:00:29.4]} 46... Qh4+ {[%clk
0:00:11.1]} 47. Kg1 {[%clk 0:00:29.6]} 47... Qd4+ {[%clk 0:00:07.7]} 48. Kh1
{[%clk 0:00:29]} 48... Qh4+ {[%clk 0:00:08.2]} 49. Kg1 {[%clk 0:00:29]} 49...
Qd4+ {[%clk 0:00:08.5]} 1/2-1/2